[Event "Titled Tuesday Blitz February 07 Early 2023"]
[White "Svane, Frederik"]
[Black "Hnydiuk, Aleksander"]
[WhiteFideId "12923044"]
[BlackFideId "1109057"]
[WhiteElo "2600"]
[BlackElo "2363"]
[Result "1/2-1/2"]
[Round "01"]
[TimeControl "180+2"]
[Date "2023.02.07"]
[WhiteClock "0:00:06"]
[BlackClock "0:00:10"]

1. e4 {[%clk 0:03:00]}  e5 {[%clk 0:02:48]} 2. Nf3 {[%clk 0:03:00]}  Nc6 {[%clk 0:02:48]} 3. Bb5 {[%clk 0:02:59]}  Nf6 {[%clk 0:02:43]} 4. O-O {[%clk 0:02:59]}  Nxe4 {[%clk 0:02:43]} 5. Re1 {[%clk 0:02:57]}  Nd6 {[%clk 0:02:42]} 6. Ba4 {[%clk 0:02:57]}  Be7 {[%clk 0:02:41]} 7. d4 {[%clk 0:02:57]}  e4 {[%clk 0:02:28]} 8. Ne5 {[%clk 0:02:54]}  O-O {[%clk 0:02:24]} 9. Nc3 {[%clk 0:02:53]}  Bf6 {[%clk 0:02:09]} 10. Nxe4 {[%clk 0:02:40]}  Nxe4 {[%clk 0:02:01]} 11. Rxe4 {[%clk 0:02:41]}  Re8 {[%clk 0:01:36]} 12. Nxf7 {[%clk 0:01:51]}  Kxf7 {[%clk 0:01:33]} 13. Qh5+ {[%clk 0:01:51]}  Kf8 {[%clk 0:01:26]} 14. Bb3 {[%clk 0:01:51]}  d5 {[%clk 0:01:14]} 15. Bxd5 {[%clk 0:01:50]}  Re7 {[%clk 0:00:58]} 16. b3 {[%clk 0:00:44]}  Qe8 {[%clk 0:00:51]} 17. Qxh7 {[%clk 0:00:41]}  Be6 {[%clk 0:00:37]} 18. Bxe6 {[%clk 0:00:39]}  Rxe6 {[%clk 0:00:36]} 19. Ba3+ {[%clk 0:00:35]}  Kf7 {[%clk 0:00:34]} 20. Qh5+ {[%clk 0:00:34]}  Kg8 {[%clk 0:00:20]} 21. Qd5 {[%clk 0:00:34]}  Nxd4 {[%clk 0:00:16]} 22. Rae1 {[%clk 0:00:32]}  Qc6 {[%clk 0:00:09]} 23. Qxc6 {[%clk 0:00:20]}  Rxc6 {[%clk 0:00:10]} 24. c4 {[%clk 0:00:09]}  Nc2 {[%clk 0:00:09]} 25. Re8+ {[%clk 0:00:09]}  Rxe8 {[%clk 0:00:10]} 26. Rxe8+ {[%clk 0:00:10]}  Kf7 {[%clk 0:00:10]} 27. Rf8+ {[%clk 0:00:10]}  Kg6 {[%clk 0:00:11]} 28. Bc1 {[%clk 0:00:03]}  Re6 {[%clk 0:00:11]} 29. Be3 {[%clk 0:00:02]}  Nxe3 {[%clk 0:00:10]} 30. fxe3 {[%clk 0:00:03]}  Rxe3 {[%clk 0:00:10]} 31. Rc8 {[%clk 0:00:03]}  Re7 {[%clk 0:00:06]} 32. Kf2 {[%clk 0:00:04]}  c5 {[%clk 0:00:05]} 33. Kf3 {[%clk 0:00:03]}  Bd4 {[%clk 0:00:05]} 34. h4 {[%clk 0:00:02]}  b6 {[%clk 0:00:05]} 35. g4 {[%clk 0:00:02]}  Re3+ {[%clk 0:00:05]} 36. Kf4 {[%clk 0:00:02]}  Re2 {[%clk 0:00:05]} 37. h5+ {[%clk 0:00:03]}  Kh7 {[%clk 0:00:05]} 38. Ra8 {[%clk 0:00:02]}  Rf2+ {[%clk 0:00:04]} 39. Kg3 {[%clk 0:00:02]}  Rxa2 {[%clk 0:00:03]} 40. g5 {[%clk 0:00:02]}  Be3 {[%clk 0:00:01]} 41. Kh4 {[%clk 0:00:01]}  Bxg5+ {[%clk 0:00:02]} 42. Kxg5 {[%clk 0:00:01]}  Rg2+ {[%clk 0:00:02]} 43. Kf4 {[%clk 0:00:02]}  Rb2 {[%clk 0:00:03]} 44. Rxa7 {[%clk 0:00:03]}  Rxb3 {[%clk 0:00:04]} 45. Ke4 {[%clk 0:00:03]}  Rb4 {[%clk 0:00:03]} 46. Kd5 {[%clk 0:00:03]}  b5 {[%clk 0:00:03]} 47. Kxc5 {[%clk 0:00:02]}  Rxc4+ {[%clk 0:00:03]} 48. Kxb5 {[%clk 0:00:03]}  Rh4 {[%clk 0:00:04]} 49. Kc5 {[%clk 0:00:03]}  Rxh5+ {[%clk 0:00:04]} 50. Kd4 {[%clk 0:00:04]}  Rf5 {[%clk 0:00:05]} 51. Ke4 {[%clk 0:00:04]}  Rf6 {[%clk 0:00:05]} 52. Ra1 {[%clk 0:00:04]}  g5 {[%clk 0:00:05]} 53. Rg1 {[%clk 0:00:05]}  Kg6 {[%clk 0:00:05]} 54. Ke3 {[%clk 0:00:05]}  Kh5 {[%clk 0:00:06]} 55. Rh1+ {[%clk 0:00:05]}  Kg4 {[%clk 0:00:06]} 56. Rg1+ {[%clk 0:00:06]}  Kh5 {[%clk 0:00:05]} 57. Rh1+ {[%clk 0:00:06]}  Kg6 {[%clk 0:00:05]} 58. Rg1 {[%clk 0:00:06]}  Rf4 {[%clk 0:00:06]} 59. Rh1 {[%clk 0:00:03]}  Kf5 {[%clk 0:00:06]} 60. Rg1 {[%clk 0:00:03]}  Kf6 {[%clk 0:00:04]} 61. Rh1 {[%clk 0:00:02]}  Kg6 {[%clk 0:00:04]} 62. Rg1 {[%clk 0:00:02]}  Rf7 {[%clk 0:00:04]} 63. Ke4 {[%clk 0:00:01]}  Rf8 {[%clk 0:00:04]} 64. Ke3 {[%clk 0:00:01]}  Rf5 {[%clk 0:00:03]} 65. Ke4 {[%clk 0:00:02]}  Kf6 {[%clk 0:00:03]} 66. Ke3 {[%clk 0:00:02]}  Rf4 {[%clk 0:00:03]} 67. Rh1 {[%clk 0:00:02]}  Kf5 {[%clk 0:00:04]} 68. Rg1 {[%clk 0:00:02]}  Ra4 {[%clk 0:00:04]} 69. Kf3 {[%clk 0:00:01]}  Ra3+ {[%clk 0:00:04]} 70. Kg2 {[%clk 0:00:02]}  Kf4 {[%clk 0:00:04]} 71. Rb1 {[%clk 0:00:02]}  Ra2+ {[%clk 0:00:04]} 72. Kg1 {[%clk 0:00:03]}  Kg3 {[%clk 0:00:04]} 73. Rb3+ {[%clk 0:00:03]}  Kh4 {[%clk 0:00:04]} 74. Rb1 {[%clk 0:00:04]}  g4 {[%clk 0:00:04]} 75. Rc1 {[%clk 0:00:04]}  g3 {[%clk 0:00:03]} 76. Rc4+ {[%clk 0:00:04]}  Kh3 {[%clk 0:00:03]} 77. Rc1 {[%clk 0:00:05]}  Rg2+ {[%clk 0:00:03]} 78. Kh1 {[%clk 0:00:06]}  Rh2+ {[%clk 0:00:03]} 79. Kg1 {[%clk 0:00:06]}  Rg2+ {[%clk 0:00:01]} 80. Kh1 {[%clk 0:00:06]}  Rd2 {[%clk 0:00:02]} 81. Kg1 {[%clk 0:00:06]}  Re2 {[%clk 0:00:03]} 82. Kh1 {[%clk 0:00:06]}  Rh2+ {[%clk 0:00:03]} 83. Kg1 {[%clk 0:00:06]}  Rf2 {[%clk 0:00:04]} 84. Rb1 {[%clk 0:00:06]}  Rg2+ {[%clk 0:00:04]} 85. Kh1 {[%clk 0:00:06]}  Re2 {[%clk 0:00:04]} 86. Kg1 {[%clk 0:00:06]}  Kg4 {[%clk 0:00:05]} 87. Rb4+ {[%clk 0:00:06]}  Kf3 {[%clk 0:00:05]} 88. Rb3+ {[%clk 0:00:07]}  Re3 {[%clk 0:00:05]} 89. Rxe3+ {[%clk 0:00:05]}  Kxe3 {[%clk 0:00:06]} 90. Kg2 {[%clk 0:00:05]}  Kf4 {[%clk 0:00:07]} 91. Kg1 {[%clk 0:00:06]}  Kf3 {[%clk 0:00:08]} 92. Kf1 {[%clk 0:00:06]}  g2+ {[%clk 0:00:09]} 93. Kg1 {[%clk 0:00:06]}  Kg3 {[%clk 0:00:10]} 1/2-1/2


[Site "https://www.chess.com"]

[Event "Titled Tuesday Blitz February 07 Early 2023"]
[White "Kamsky, Gata"]
[Black "Osmak, Yuliia"]
[WhiteFideId "2000024"]
[BlackFideId "14101602"]
[WhiteElo "2665"]
[BlackElo "2440"]
[Result "1-0"]
[Round "01"]
[TimeControl "180+2"]
[Date "2023.02.07"]
[WhiteClock "0:01:56"]
[BlackClock "0:01:29"]

1. d4 {[%clk 0:02:58]}  d5 {[%clk 0:02:57]} 2. Bf4 {[%clk 0:02:55]}  Nf6 {[%clk 0:02:57]} 3. e3 {[%clk 0:02:54]}  e6 {[%clk 0:02:54]} 4. Nf3 {[%clk 0:02:52]}  Bd6 {[%clk 0:02:53]} 5. Bxd6 {[%clk 0:02:52]}  Qxd6 {[%clk 0:02:52]} 6. c4 {[%clk 0:02:52]}  c5 {[%clk 0:02:48]} 7. Nc3 {[%clk 0:02:43]}  O-O {[%clk 0:02:41]} 8. cxd5 {[%clk 0:02:39]}  cxd4 {[%clk 0:02:38]} 9. Qxd4 {[%clk 0:02:38]}  exd5 {[%clk 0:02:34]} 10. Be2 {[%clk 0:02:33]}  Nc6 {[%clk 0:02:33]} 11. Qd2 {[%clk 0:02:33]}  Bg4 {[%clk 0:02:32]} 12. O-O {[%clk 0:02:32]}  Rad8 {[%clk 0:02:31]} 13. Rfd1 {[%clk 0:02:30]}  Qe7 {[%clk 0:02:27]} 14. Nd4 {[%clk 0:02:29]}  Nxd4 {[%clk 0:01:59]} 15. Qxd4 {[%clk 0:02:27]}  Bxe2 {[%clk 0:01:57]} 16. Nxe2 {[%clk 0:02:28]}  b6 {[%clk 0:01:46]} 17. Nc3 {[%clk 0:02:28]}  Rd7 {[%clk 0:01:39]} 18. Rd3 {[%clk 0:02:23]}  Rc8 {[%clk 0:01:32]} 19. Rad1 {[%clk 0:01:57]}  Rc4 {[%clk 0:01:29]} 20. Nxd5 {[%clk 0:01:56]} 1-0


[Site "https://www.chess.com"]

[Event "Titled Tuesday Blitz February 07 Early 2023"]
[White "Kumala, Aleksander"]
[Black "Tsydypov, Zhamsaran"]
[WhiteFideId "1141880"]
[BlackFideId "4108566"]
[WhiteElo "2165"]
[BlackElo "2518"]
[Result "1-0"]
[Round "01"]
[TimeControl "180+2"]
[Date "2023.02.07"]
[WhiteClock "0:00:18"]
[BlackClock "0:01:50"]

1. d4 {[%clk 0:02:58]}  Nf6 {[%clk 0:02:58]} 2. Bg5 {[%clk 0:02:58]}  Ne4 {[%clk 0:02:53]} 3. h4 {[%clk 0:02:57]}  c5 {[%clk 0:02:53]} 4. d5 {[%clk 0:02:57]}  Qb6 {[%clk 0:02:52]} 5. Nd2 {[%clk 0:02:57]}  Nxd2 {[%clk 0:02:52]} 6. Bxd2 {[%clk 0:02:55]}  Qxb2 {[%clk 0:02:50]} 7. Nf3 {[%clk 0:02:55]}  g6 {[%clk 0:02:49]} 8. e4 {[%clk 0:02:55]}  Bg7 {[%clk 0:02:48]} 9. Rb1 {[%clk 0:02:54]}  Qxa2 {[%clk 0:02:49]} 10. h5 {[%clk 0:02:47]}  d6 {[%clk 0:02:43]} 11. c3 {[%clk 0:02:30]}  Qa5 {[%clk 0:02:41]} 12. Ra1 {[%clk 0:02:08]}  Qc7 {[%clk 0:02:41]} 13. Bd3 {[%clk 0:01:56]}  Bg4 {[%clk 0:02:40]} 14. Qa4+ {[%clk 0:01:49]}  Kf8 {[%clk 0:02:39]} 15. h6 {[%clk 0:01:44]}  Bf6 {[%clk 0:02:39]} 16. e5 {[%clk 0:01:39]}  Bxf3 {[%clk 0:02:37]} 17. exf6 {[%clk 0:01:38]}  Bxg2 {[%clk 0:02:36]} 18. Bg5 {[%clk 0:01:28]}  exf6 {[%clk 0:02:30]} 19. Bxf6 {[%clk 0:01:28]}  Nd7 {[%clk 0:02:30]} 20. Bxh8 {[%clk 0:01:24]}  Bxh1 {[%clk 0:02:29]} 21. Qf4 {[%clk 0:00:56]}  Bxd5 {[%clk 0:02:23]} 22. Bxg6 {[%clk 0:00:56]}  Kg8 {[%clk 0:02:03]} 23. Bxh7+ {[%clk 0:00:20]}  Kxh8 {[%clk 0:01:58]} 24. Qg5 {[%clk 0:00:18]}  Re8+ {[%clk 0:01:50]} 25. Kd2 {[%clk 0:00:18]} 1-0


[Site "https://www.chess.com"]

[Event "Titled Tuesday Blitz February 07 Early 2023"]
[White "Belous, Vladimir"]
[Black "Dushyant Sharma"]
[WhiteFideId "4174003"]
[BlackFideId "25065130"]
[WhiteElo "2505"]
[BlackElo "2355"]
[Result "1-0"]
[Round "01"]
[TimeControl "180+2"]
[Date "2023.02.07"]
[WhiteClock "0:00:33"]
[BlackClock "0:00:01"]

1. c4 {[%clk 0:02:59]}  e6 {[%clk 0:02:57]} 2. Nf3 {[%clk 0:02:58]}  d5 {[%clk 0:02:55]} 3. g3 {[%clk 0:02:58]}  Nf6 {[%clk 0:02:53]} 4. Bg2 {[%clk 0:02:58]}  Be7 {[%clk 0:02:38]} 5. O-O {[%clk 0:02:57]}  O-O {[%clk 0:02:38]} 6. b3 {[%clk 0:02:52]}  c5 {[%clk 0:02:36]} 7. Bb2 {[%clk 0:02:52]}  Nc6 {[%clk 0:02:36]} 8. e3 {[%clk 0:02:52]}  b6 {[%clk 0:02:29]} 9. Qe2 {[%clk 0:02:52]}  Bb7 {[%clk 0:02:28]} 10. Nc3 {[%clk 0:02:42]}  Rc8 {[%clk 0:02:27]} 11. Rad1 {[%clk 0:02:34]}  d4 {[%clk 0:02:26]} 12. exd4 {[%clk 0:02:34]}  cxd4 {[%clk 0:02:12]} 13. Nb5 {[%clk 0:02:33]}  d3 {[%clk 0:01:51]} 14. Qe3 {[%clk 0:02:28]}  Nb4 {[%clk 0:01:33]} 15. Ne5 {[%clk 0:02:15]}  Bxg2 {[%clk 0:01:10]} 16. Kxg2 {[%clk 0:02:13]}  a6 {[%clk 0:00:55]} 17. Nc3 {[%clk 0:01:49]}  Bc5 {[%clk 0:00:37]} 18. Qf3 {[%clk 0:01:50]}  b5 {[%clk 0:00:27]} 19. a3 {[%clk 0:01:25]}  Nc2 {[%clk 0:00:26]} 20. cxb5 {[%clk 0:01:16]}  axb5 {[%clk 0:00:20]} 21. Nxb5 {[%clk 0:01:16]}  Nd4 {[%clk 0:00:16]} 22. Bxd4 {[%clk 0:01:12]}  Bxd4 {[%clk 0:00:17]} 23. Nc6 {[%clk 0:01:12]}  Rxc6 {[%clk 0:00:14]} 24. Qxc6 {[%clk 0:01:12]}  Bb6 {[%clk 0:00:08]} 25. b4 {[%clk 0:01:11]}  Qb8 {[%clk 0:00:07]} 26. Rc1 {[%clk 0:01:08]}  Nd5 {[%clk 0:00:05]} 27. Nd6 {[%clk 0:00:59]}  Rd8 {[%clk 0:00:03]} 28. Nc4 {[%clk 0:00:46]}  Bd4 {[%clk 0:00:03]} 29. Ne3 {[%clk 0:00:42]}  Bxe3 {[%clk 0:00:03]} 30. fxe3 {[%clk 0:00:42]}  Qe5 {[%clk 0:00:03]} 31. Qd7 {[%clk 0:00:33]}  Qe4+ {[%clk 0:00:02]} 32. Kg1 {[%clk 0:00:33]}  Rf8 {[%clk 0:00:01]} 33. Qxf7+ {[%clk 0:00:33]} 1-0


[Site "https://www.chess.com"]

[Event "Titled Tuesday Blitz February 07 Early 2023"]
[White "Florescu, Codrut-Constantin"]
[Black "Madaminov, Mukhiddin"]
[WhiteFideId "1202200"]
[BlackFideId "14210703"]
[WhiteElo "2259"]
[BlackElo "2422"]
[Result "0-1"]
[Round "01"]
[TimeControl "180+2"]
[Date "2023.02.07"]
[WhiteClock "0:00:13"]
[BlackClock "0:00:04"]

1. e4 {[%clk 0:02:55]}  e6 {[%clk 0:02:58]} 2. Nf3 {[%clk 0:02:54]}  d5 {[%clk 0:02:59]} 3. e5 {[%clk 0:02:55]}  c5 {[%clk 0:02:59]} 4. b4 {[%clk 0:02:54]}  cxb4 {[%clk 0:02:59]} 5. d4 {[%clk 0:02:54]}  b6 {[%clk 0:02:48]} 6. a3 {[%clk 0:02:53]}  Ba6 {[%clk 0:02:48]} 7. axb4 {[%clk 0:02:53]}  Bxf1 {[%clk 0:02:48]} 8. Kxf1 {[%clk 0:02:53]}  Bxb4 {[%clk 0:02:43]} 9. Ng5 {[%clk 0:02:53]}  Be7 {[%clk 0:02:27]} 10. Qh5 {[%clk 0:02:50]}  g6 {[%clk 0:02:23]} 11. Qg4 {[%clk 0:02:49]}  h5 {[%clk 0:02:23]} 12. Qg3 {[%clk 0:02:47]}  Nh6 {[%clk 0:02:08]} 13. h4 {[%clk 0:02:40]}  Nf5 {[%clk 0:02:09]} 14. Qd3 {[%clk 0:02:39]}  Nc6 {[%clk 0:02:06]} 15. c3 {[%clk 0:02:39]}  Na5 {[%clk 0:01:57]} 16. Na3 {[%clk 0:02:20]}  Qd7 {[%clk 0:01:48]} 17. Nc2 {[%clk 0:02:11]}  Rc8 {[%clk 0:01:44]} 18. Ne3 {[%clk 0:01:48]}  Nc4 {[%clk 0:01:26]} 19. Nxf5 {[%clk 0:01:45]}  exf5 {[%clk 0:01:26]} 20. g3 {[%clk 0:01:42]}  Rc6 {[%clk 0:01:23]} 21. Kg2 {[%clk 0:01:41]}  O-O {[%clk 0:01:23]} 22. Re1 {[%clk 0:01:40]}  Rfc8 {[%clk 0:01:18]} 23. Bf4 {[%clk 0:01:36]}  a5 {[%clk 0:01:17]} 24. Rab1 {[%clk 0:01:34]}  Na3 {[%clk 0:01:13]} 25. Rb3 {[%clk 0:01:34]}  a4 {[%clk 0:01:09]} 26. Rxa3 {[%clk 0:01:33]}  Bxa3 {[%clk 0:01:08]} 27. c4 {[%clk 0:01:34]}  Bb4 {[%clk 0:01:06]} 28. Rb1 {[%clk 0:01:26]}  Rxc4 {[%clk 0:01:04]} 29. e6 {[%clk 0:01:25]}  fxe6 {[%clk 0:01:04]} 30. Qe3 {[%clk 0:01:21]}  R8c6 {[%clk 0:00:31]} 31. Nf3 {[%clk 0:01:00]}  Rc3 {[%clk 0:00:22]} 32. Qe2 {[%clk 0:01:00]}  R6c4 {[%clk 0:00:15]} 33. Ne5 {[%clk 0:00:46]}  Qc8 {[%clk 0:00:15]} 34. Nxg6 {[%clk 0:00:43]}  Rb3 {[%clk 0:00:13]} 35. Rd1 {[%clk 0:00:37]}  Qd7 {[%clk 0:00:05]} 36. Qxh5 {[%clk 0:00:31]}  Qh7 {[%clk 0:00:06]} 37. Qg5 {[%clk 0:00:31]}  Kf7 {[%clk 0:00:03]} 38. Ne5+ {[%clk 0:00:31]}  Ke8 {[%clk 0:00:04]} 39. Nxc4 {[%clk 0:00:31]}  Be7 {[%clk 0:00:03]} 40. Nd6+ {[%clk 0:00:28]}  Kd7 {[%clk 0:00:04]} 41. Qh6 {[%clk 0:00:18]}  Qxh6 {[%clk 0:00:04]} 42. Bxh6 {[%clk 0:00:19]}  Bxd6 {[%clk 0:00:05]} 43. h5 {[%clk 0:00:19]}  a3 {[%clk 0:00:05]} 44. Bg7 {[%clk 0:00:19]}  a2 {[%clk 0:00:03]} 45. Ra1 {[%clk 0:00:19]}  Rb1 {[%clk 0:00:02]} 46. Rxa2 {[%clk 0:00:18]}  f4 {[%clk 0:00:03]} 47. g4 {[%clk 0:00:18]}  f3+ {[%clk 0:00:03]} 48. Kxf3 {[%clk 0:00:18]}  Rh1 {[%clk 0:00:04]} 49. h6 {[%clk 0:00:17]}  Rh3+ {[%clk 0:00:04]} 50. Ke2 {[%clk 0:00:17]}  Rh2 {[%clk 0:00:04]} 51. Ra7+ {[%clk 0:00:17]}  Kc6 {[%clk 0:00:03]} 52. g5 {[%clk 0:00:17]}  Bf4 {[%clk 0:00:03]} 53. g6 {[%clk 0:00:17]}  Bxh6 {[%clk 0:00:03]} 54. Be5 {[%clk 0:00:15]}  Rg2 {[%clk 0:00:04]} 55. Ra8 {[%clk 0:00:10]}  Rxg6 {[%clk 0:00:04]} 56. Rc8+ {[%clk 0:00:10]}  Kb5 {[%clk 0:00:04]} 57. Re8 {[%clk 0:00:11]}  Kc4 {[%clk 0:00:04]} 58. f4 {[%clk 0:00:11]}  b5 {[%clk 0:00:05]} 59. Rc8+ {[%clk 0:00:12]}  Kb3 {[%clk 0:00:05]} 60. Rb8 {[%clk 0:00:13]}  Kc4 {[%clk 0:00:04]} 61. Kf3 {[%clk 0:00:14]}  Bg7 {[%clk 0:00:03]} 62. Rb6 {[%clk 0:00:14]}  Bxe5 {[%clk 0:00:03]} 63. dxe5 {[%clk 0:00:15]}  b4 {[%clk 0:00:01]} 64. f5 {[%clk 0:00:15]}  Rg5 {[%clk 0:00:02]} 65. f6 {[%clk 0:00:15]}  Rxe5 {[%clk 0:00:03]} 66. Kg4 {[%clk 0:00:15]}  b3 {[%clk 0:00:02]} 67. Rb7 {[%clk 0:00:13]}  Rf5 {[%clk 0:00:03]} 68. Rc7+ {[%clk 0:00:12]}  Kb4 {[%clk 0:00:03]} 69. Rd7 {[%clk 0:00:13]}  Rxf6 {[%clk 0:00:02]} 70. Rd6 {[%clk 0:00:11]}  Kc4 {[%clk 0:00:03]} 71. Kg3 {[%clk 0:00:12]}  Kc5 {[%clk 0:00:03]} 72. Rc6+ {[%clk 0:00:13]}  Kxc6 {[%clk 0:00:03]} 73. Kg4 {[%clk 0:00:13]}  Rf5 {[%clk 0:00:04]} 0-1


[Site "https://www.chess.com"]

[Event "Titled Tuesday Blitz February 07 Early 2023"]
[White "Pap, Gyula"]
[Black "matenitian"]
[WhiteFideId "725323"]
[WhiteElo "2429"]
[BlackElo "2479"]
[Result "1-0"]
[Round "01"]
[TimeControl "180+2"]
[Date "2023.02.07"]
[WhiteClock "0:00:34"]
[BlackClock "0:00:10"]

1. d3 {[%clk 0:03:00]}  e5 {[%clk 0:02:50]} 2. e4 {[%clk 0:02:59]}  Nc6 {[%clk 0:02:48]} 3. Be3 {[%clk 0:02:55]}  Nf6 {[%clk 0:02:46]} 4. c4 {[%clk 0:02:54]}  Bb4+ {[%clk 0:02:43]} 5. Nc3 {[%clk 0:02:53]}  O-O {[%clk 0:02:44]} 6. a3 {[%clk 0:02:51]}  Bxc3+ {[%clk 0:02:32]} 7. bxc3 {[%clk 0:02:52]}  d6 {[%clk 0:02:30]} 8. Be2 {[%clk 0:02:49]}  Re8 {[%clk 0:02:28]} 9. h3 {[%clk 0:02:48]}  b6 {[%clk 0:02:22]} 10. Nf3 {[%clk 0:02:48]}  Bd7 {[%clk 0:02:20]} 11. O-O {[%clk 0:02:48]}  Ne7 {[%clk 0:02:16]} 12. Nh4 {[%clk 0:02:46]}  Ng6 {[%clk 0:02:12]} 13. Nxg6 {[%clk 0:02:46]}  hxg6 {[%clk 0:02:12]} 14. f4 {[%clk 0:02:47]}  a5 {[%clk 0:01:56]} 15. a4 {[%clk 0:02:34]}  Bc6 {[%clk 0:01:55]} 16. Qe1 {[%clk 0:02:33]}  exf4 {[%clk 0:01:46]} 17. Rxf4 {[%clk 0:02:30]}  d5 {[%clk 0:01:42]} 18. cxd5 {[%clk 0:02:24]}  Bxd5 {[%clk 0:01:38]} 19. Qf2 {[%clk 0:02:18]}  Bc6 {[%clk 0:01:33]} 20. Bd4 {[%clk 0:02:15]}  Re6 {[%clk 0:01:30]} 21. Rf1 {[%clk 0:01:29]}  Bxa4 {[%clk 0:01:16]} 22. e5 {[%clk 0:01:19]}  Nh7 {[%clk 0:01:07]} 23. Bg4 {[%clk 0:01:14]}  Re7 {[%clk 0:00:51]} 24. Rxf7 {[%clk 0:01:13]}  Ng5 {[%clk 0:00:51]} 25. e6 {[%clk 0:01:06]}  Nxf7 {[%clk 0:00:18]} 26. exf7+ {[%clk 0:01:05]}  Kf8 {[%clk 0:00:18]} 27. Qh4 {[%clk 0:00:33]}  Rxf7 {[%clk 0:00:14]} 28. Qh8+ {[%clk 0:00:33]}  Ke7 {[%clk 0:00:13]} 29. Rxf7+ {[%clk 0:00:34]}  Kxf7 {[%clk 0:00:10]} 30. Qxg7+ {[%clk 0:00:34]}  Ke8 {[%clk 0:00:11]} 31. Qxg6+ {[%clk 0:00:34]}  Ke7 {[%clk 0:00:10]} 1-0


[Site "https://www.chess.com"]

[Event "Titled Tuesday Blitz February 07 Early 2023"]
[White "Ljukin, Sergei"]
[Black "Kozak, Adam"]
[WhiteFideId "14102200"]
[BlackFideId "753246"]
[WhiteElo "2362"]
[BlackElo "2572"]
[Result "1-0"]
[Round "01"]
[TimeControl "180+2"]
[Date "2023.02.07"]
[WhiteClock "0:00:27"]
[BlackClock "0:00:02"]

1. e4 {[%clk 0:02:58]}  c5 {[%clk 0:02:41]} 2. Nf3 {[%clk 0:02:56]}  d6 {[%clk 0:02:39]} 3. d4 {[%clk 0:02:56]}  cxd4 {[%clk 0:02:37]} 4. Nxd4 {[%clk 0:02:57]}  Nf6 {[%clk 0:02:36]} 5. Nc3 {[%clk 0:02:57]}  a6 {[%clk 0:02:33]} 6. Bg5 {[%clk 0:02:56]}  e6 {[%clk 0:02:27]} 7. f4 {[%clk 0:02:56]}  h6 {[%clk 0:02:27]} 8. Bh4 {[%clk 0:02:55]}  Qb6 {[%clk 0:02:28]} 9. a3 {[%clk 0:02:54]}  Be7 {[%clk 0:02:28]} 10. Bf2 {[%clk 0:02:54]}  Qc7 {[%clk 0:02:27]} 11. Qe2 {[%clk 0:02:54]}  b5 {[%clk 0:02:28]} 12. O-O-O {[%clk 0:02:52]}  Bb7 {[%clk 0:02:27]} 13. g4 {[%clk 0:02:52]}  Nbd7 {[%clk 0:02:23]} 14. h4 {[%clk 0:02:42]}  h5 {[%clk 0:02:23]} 15. g5 {[%clk 0:02:40]}  Ng4 {[%clk 0:02:23]} 16. Bg1 {[%clk 0:02:40]}  g6 {[%clk 0:02:17]} 17. Rh3 {[%clk 0:02:37]}  Nb6 {[%clk 0:02:14]} 18. f5 {[%clk 0:02:36]}  e5 {[%clk 0:02:12]} 19. Ndxb5 {[%clk 0:02:19]}  axb5 {[%clk 0:02:04]} 20. Nxb5 {[%clk 0:02:18]}  Qd8 {[%clk 0:02:01]} 21. f6 {[%clk 0:02:06]}  Nc8 {[%clk 0:02:01]} 22. fxe7 {[%clk 0:02:03]}  Qxe7 {[%clk 0:02:02]} 23. Rc3 {[%clk 0:01:55]}  O-O {[%clk 0:01:56]} 24. Rc7 {[%clk 0:01:54]}  Qe6 {[%clk 0:01:55]} 25. Rxb7 {[%clk 0:01:54]}  Qa2 {[%clk 0:01:30]} 26. Nc3 {[%clk 0:01:37]}  Qe6 {[%clk 0:01:30]} 27. Qc4 {[%clk 0:01:35]}  Qe8 {[%clk 0:01:24]} 28. Nd5 {[%clk 0:01:34]}  Ra4 {[%clk 0:01:20]} 29. Qb5 {[%clk 0:01:08]}  Qxb5 {[%clk 0:01:15]} 30. Bxb5 {[%clk 0:01:08]}  Rxe4 {[%clk 0:01:16]} 31. Bd7 {[%clk 0:01:08]}  Kg7 {[%clk 0:01:10]} 32. Rc7 {[%clk 0:01:07]}  Ne7 {[%clk 0:00:22]} 33. Nxe7 {[%clk 0:01:05]}  Re2 {[%clk 0:00:19]} 34. Nd5 {[%clk 0:00:55]}  e4 {[%clk 0:00:16]} 35. Bd4+ {[%clk 0:00:54]}  Ne5 {[%clk 0:00:16]} 36. Rc6 {[%clk 0:00:45]}  Kg8 {[%clk 0:00:09]} 37. Rxd6 {[%clk 0:00:44]}  Nf3 {[%clk 0:00:08]} 38. Nf6+ {[%clk 0:00:43]}  Kh8 {[%clk 0:00:08]} 39. Nxe4+ {[%clk 0:00:41]}  Kh7 {[%clk 0:00:06]} 40. Nf6+ {[%clk 0:00:41]}  Kh8 {[%clk 0:00:06]} 41. Nxh5+ {[%clk 0:00:41]}  Kh7 {[%clk 0:00:05]} 42. Nf6+ {[%clk 0:00:41]}  Kh8 {[%clk 0:00:05]} 43. Bg4 {[%clk 0:00:41]}  Nxd4 {[%clk 0:00:04]} 44. R6xd4 {[%clk 0:00:38]}  Kg7 {[%clk 0:00:02]} 45. Bxe2 {[%clk 0:00:34]}  Rd8 {[%clk 0:00:03]} 46. Re4 {[%clk 0:00:30]}  Re8 {[%clk 0:00:01]} 47. Nxe8+ {[%clk 0:00:29]}  Kf8 {[%clk 0:00:01]} 48. Nf6 {[%clk 0:00:27]}  Kg7 {[%clk 0:00:02]} 49. a4 {[%clk 0:00:27]}  Kf8 {[%clk 0:00:02]} 50. Rd8+ {[%clk 0:00:27]}  Kg7 {[%clk 0:00:02]} 51. Rg8# {[%clk 0:00:27]} 1-0


[Site "https://www.chess.com"]

[Event "Titled Tuesday Blitz February 07 Early 2023"]
[White "Makarian, Rudik"]
[Black "Shuvalov, Evgenij"]
[WhiteFideId "44105681"]
[BlackFideId "4187237"]
[WhiteElo "2545"]
[BlackElo "2038"]
[Result "1-0"]
[Round "01"]
[TimeControl "180+2"]
[Date "2023.02.07"]
[WhiteClock "0:01:42"]
[BlackClock "0:00:38"]

1. f4 {[%clk 0:02:59]}  d5 {[%clk 0:02:19]} 2. Nf3 {[%clk 0:02:30]}  Nf6 {[%clk 0:02:12]} 3. g3 {[%clk 0:02:30]}  e6 {[%clk 0:02:12]} 4. Bg2 {[%clk 0:02:31]}  Be7 {[%clk 0:02:12]} 5. O-O {[%clk 0:02:32]}  O-O {[%clk 0:02:13]} 6. d3 {[%clk 0:02:33]}  c5 {[%clk 0:02:14]} 7. Nc3 {[%clk 0:02:32]}  Nc6 {[%clk 0:02:14]} 8. e4 {[%clk 0:02:33]}  Rb8 {[%clk 0:02:14]} 9. e5 {[%clk 0:02:32]}  Ne8 {[%clk 0:02:13]} 10. Qe2 {[%clk 0:02:30]}  b5 {[%clk 0:02:13]} 11. g4 {[%clk 0:02:31]}  b4 {[%clk 0:02:11]} 12. Nd1 {[%clk 0:02:31]}  a5 {[%clk 0:02:09]} 13. Nf2 {[%clk 0:02:29]}  Nc7 {[%clk 0:02:09]} 14. g5 {[%clk 0:02:30]}  Nb5 {[%clk 0:02:02]} 15. Ng4 {[%clk 0:02:29]}  Nbd4 {[%clk 0:02:01]} 16. Qf2 {[%clk 0:02:30]}  Nf5 {[%clk 0:01:54]} 17. Nh4 {[%clk 0:02:27]}  Ncd4 {[%clk 0:01:52]} 18. Be3 {[%clk 0:02:16]}  Nxh4 {[%clk 0:01:48]} 19. Qxh4 {[%clk 0:02:16]}  Nxc2 {[%clk 0:01:30]} 20. Rf3 {[%clk 0:02:17]}  f5 {[%clk 0:01:02]} 21. gxf6 {[%clk 0:02:13]}  gxf6 {[%clk 0:01:00]} 22. Rh3 {[%clk 0:02:14]}  Rf7 {[%clk 0:00:59]} 23. Nh6+ {[%clk 0:02:14]}  Kf8 {[%clk 0:00:58]} 24. Nxf7 {[%clk 0:02:15]}  Kxf7 {[%clk 0:00:59]} 25. Qxh7+ {[%clk 0:02:11]}  Ke8 {[%clk 0:00:59]} 26. Rc1 {[%clk 0:01:59]}  Nxe3 {[%clk 0:00:57]} 27. Rxe3 {[%clk 0:01:59]}  f5 {[%clk 0:00:52]} 28. Rg3 {[%clk 0:01:54]}  Kd7 {[%clk 0:00:52]} 29. Rg8 {[%clk 0:01:45]}  Qb6 {[%clk 0:00:46]} 30. Rg7 {[%clk 0:01:45]}  Qd8 {[%clk 0:00:41]} 31. Rxc5 {[%clk 0:01:43]}  Bb7 {[%clk 0:00:38]} 32. Rxe7+ {[%clk 0:01:40]}  Qxe7 {[%clk 0:00:35]} 33. Rc7+ {[%clk 0:01:40]}  Kxc7 {[%clk 0:00:36]} 34. Qxe7+ {[%clk 0:01:41]}  Kb6 {[%clk 0:00:37]} 35. Qxe6+ {[%clk 0:01:41]}  Ka7 {[%clk 0:00:38]} 36. Qxf5 {[%clk 0:01:42]} 1-0


[Site "https://www.chess.com"]